fUST/lending_fUST_20250819
["ID","MTS","AMOUNT","RATE_DAILY","PERIOD"]
[380176438,1755593449346,-849.3,0.00020273,2]
[380176439,1755593449355,-543.12,0.00020273,2]
[380176440,1755593449364,-480.0,0.00020273,2]
[380176441,1755593449373,-480.0,0.00020273,2]
[380176442,1755593449382,-480.0,0.00020273,2]
[380176443,1755593449391,-535.647314,0.00020273,2]
[380176444,1755593449401,-535.647314,0.00020273,2]
[380176445,1755593449410,-420.0,0.00020273,2]
[380176446,1755593449419,-151.0,0.00020273,2]
[380176447,1755593449428,-151.0,0.00020273,2]
[380176448,1755593449438,-151.0,0.00020273,2]
[380176449,1755593449447,-151.0,0.00020273,2]
[380176450,1755593449456,-557.31,0.00020273,2]
[380176451,1755593449465,-696.53,0.00020273,2]
[380176452,1755593449475,-2007.54,0.00020273,2]
[380176453,1755593449484,-460.0,0.00020273,2]
[380176454,1755593449495,-3410.87,0.00020273,2]
[380176455,1755593449505,-151.0,0.00020273,2]
[380176456,1755593449515,-151.0,0.00020273,2]
[380176457,1755593449524,-480.0,0.00020273,2]
[380176458,1755593449534,-194.443207,0.00020273,2]
[380176459,1755593449547,-151.0,0.00020273,2]
[380176460,1755593449556,-151.0,0.00020273,2]
[380176461,1755593449565,-194.443207,0.00020273,2]
[380176462,1755593449579,-255.847081,0.00020273,2]
[380176463,1755593449589,-480.0,0.00020273,2]
[380176464,1755593449599,-480.0,0.00020273,2]
[380176465,1755593449608,-1270.09,0.00020273,2]
[380176466,1755593449619,-220.87746533,0.00020273,2]
[380176467,1755593449629,-822.37,0.00020273,2]
[380176468,1755593449638,-480.0,0.00020273,2]
[380176469,1755593449647,-156.791669,0.00020273,2]
[380176470,1755593449724,-151.0,0.00020273,2]
[380176471,1755593449734,-1629.67,0.00020273,2]
[380176472,1755593449743,-1246.1,0.00020273,2]
[380176473,1755593449752,-813.04,0.00020273,2]
[380176474,1755593449762,-480.0,0.00020273,2]
[380176475,1755593449771,-647.44,0.00020273,2]
[380176476,1755593449780,-480.0,0.00020273,2]
[380176477,1755593449789,-340.0,0.00020273,2]
[380176478,1755593449799,-480.0,0.00020273,2]
[380176479,1755593449808,-576.17,0.00020273,2]
[380176480,1755593449817,-1057.36,0.00020273,2]
[380176481,1755593449831,-480.0,0.00020273,2]
[380176482,1755593449840,-526.96,0.00020273,2]
[380176483,1755593449850,-480.0,0.00020273,2]
[380176484,1755593449859,-151.0,0.00020273,2]
[380176485,1755593449868,-786.22,0.00020273,2]
[380176486,1755593449877,-151.0,0.00020273,2]
[380176487,1755593449886,-511.37,0.00020273,2]
[380176488,1755593449896,-480.0,0.00020273,2]
[380176489,1755593449905,-172.15071712,0.00020273,2]
[380176490,1755593449915,-480.0,0.00020273,2]
[380176491,1755593449924,-786.05,0.00020273,2]
[380176492,1755593449933,-480.0,0.00020273,2]
[380176493,1755593449943,-2051.21,0.00020273,2]
[380176494,1755593449952,-6924.41,0.00020273,2]
[380176495,1755593449961,-6698.69,0.00020273,2]
[380176496,1755593449970,-2277.25,0.00020273,2]
[380176497,1755593449980,-480.0,0.00020273,2]
[380176498,1755593449989,-2311.94,0.00020273,2]
[380176499,1755593449998,-480.0,0.00020273,2]
[380176500,1755593450007,-482.71,0.00020273,2]
[380176501,1755593450017,-480.0,0.00020273,2]
[380176502,1755593450026,-480.0,0.00020273,2]
[380176503,1755593450036,-938.96,0.00020273,2]
[380176504,1755593450045,-480.0,0.00020273,2]
[380176505,1755593450055,-1621.4,0.00020273,2]
[380176506,1755593450064,-480.0,0.00020273,2]
[380176507,1755593450076,-241.562406,0.00020273,2]
[380176508,1755593450086,-151.0,0.00020273,2]
[380176509,1755593450095,-618.388685,0.00020273,2]
[380176510,1755593450105,-241.562406,0.00020273,2]
[380176511,1755593450115,-618.388685,0.00020273,2]
[380176512,1755593450124,-3242.66,0.00020273,2]
[380176513,1755593450134,-1334.4,0.00020273,2]
[380176514,1755593450143,-1509.07,0.00020273,2]
[380176515,1755593450152,-674.88,0.00020273,2]
[380176516,1755593450163,-480.0,0.00020273,2]
[380176517,1755593450181,-480.0,0.00020273,2]
[380176518,1755593450191,-151.0,0.00020273,2]
[380176519,1755593450200,-769.92,0.00020273,2]
[380176520,1755593450209,-980.92,0.00020273,2]
[380176521,1755593450218,-281.72,0.00020273,2]
[380176522,1755593450235,-832.49,0.00020273,2]
[380176523,1755593450251,-1174.48,0.00020273,2]
[380176524,1755593450270,-235.1457587,0.00020273,2]
[380176525,1755593450289,-480.0,0.00020273,2]
[380176526,1755593450307,-1416.01,0.00020273,2]
[380176527,1755593450322,-480.0,0.00020273,2]
[380176528,1755593450339,-480.0,0.00020273,2]
[380176529,1755593450353,-480.0,0.00020273,2]
[380176530,1755593450369,-480.0,0.00020273,2]
[380176531,1755593450387,-874.65,0.00020273,2]
[380176532,1755593450407,-480.0,0.00020273,2]
[380176533,1755593450422,-702.48,0.00020273,2]
[380176534,1755593450438,-480.0,0.00020273,2]
[380176535,1755593450454,-480.0,0.00020273,2]
[380176536,1755593450469,-480.0,0.00020273,2]
[380176537,1755593450481,-2990.97,0.00020273,2]
[380176538,1755593450495,-480.0,0.00020273,2]
[380176539,1755593450511,-731.14,0.00020273,2]
[380176540,1755593450525,-480.0,0.00020273,2]
[380176541,1755593450542,-480.0,0.00020273,2]
[380176542,1755593450557,-1492.79,0.00020273,2]
[380176543,1755593450571,-881.07,0.00020273,2]
[380176544,1755593450586,-480.0,0.00020273,2]
[380176545,1755593450601,-480.0,0.00020273,2]
[380176546,1755593450616,-238.741404,0.00020273,2]
[380176547,1755593450630,-480.0,0.00020273,2]
[380176548,1755593450645,-710.19,0.00020273,2]
[380176549,1755593450660,-764.07,0.00020273,2]
[380176550,1755593450674,-480.0,0.00020273,2]
[380176551,1755593450689,-238.741404,0.00020273,2]
[380176552,1755593450703,-151.0,0.00020274,2]
[380176553,1755593450718,-505.0,0.00020274,2]
[380176554,1755593450730,-3501.0,0.00020276,2]
[380176555,1755593450740,-2025.61,0.00020288,3]
[380176556,1755593450751,-323.6165,0.000203,2]
[380176557,1755593450761,-168.0,0.00020301,2]
[380176558,1755593450771,-223.65181965,0.00020301,2]
[380176559,1755593450781,-5056.91133619,0.00020313,2]
[380176560,1755593450790,-322.989028,0.00020313,2]
[380176561,1755593450800,-151.0,0.00020313,2]
[380176562,1755593450810,-322.989028,0.00020313,2]
[380176563,1755593450819,-227.953091,0.00020313,2]
[380176564,1755593450830,-204.015073,0.00020313,2]
[380176565,1755593450840,-204.015073,0.00020313,2]
[380176566,1755593450849,-160.0,0.00020322,3]
[380176567,1755593450859,-218.47563043,0.00020322,5]
[380176568,1755593450868,-500.0,0.00020333,2]
[380176569,1755593450878,-593.24961039,0.00020333,2]
[380176570,1755593450887,-500.0,0.00020333,2]
[380176571,1755593450897,-500.55398709,0.00020333,2]
[380176572,1755593451030,-540.4185389,0.00020351,2]
[380176573,1755593451104,-180.1395129,0.00020351,2]
[380176574,1755593451117,-320.2480231,0.00020351,2]
[380176575,1755593451127,-150.0,0.00020382,2]
[380176576,1755593451137,-223.65181965,0.00020384,2]
[380176577,1755593451147,-151.0,0.000204,3]
[380176578,1755593451156,-925.52378039,0.00020479,2]
[380176579,1755593451351,-200.0,0.00019178,2]
[380176580,1755593451361,-480.0,0.00019178,2]
[380176581,1755593451370,-526.18022926,0.00019281,2]
[380176582,1755593451379,-480.0,0.00019452,2]
[380176583,1755593451388,-480.0,0.00019452,2]
[380176584,1755593451397,-151.0,0.00019452,2]
[380176585,1755593451407,-480.0,0.00019726,2]
[380176586,1755593451416,-151.0,0.00019726,2]
[380176587,1755593451425,-480.0,0.0002,2]
[380176588,1755593451434,-480.0,0.00020273,2]
[380176589,1755593451442,-75.82343431,0.00020479,2]
[380176590,1755593451451,-223.65181965,0.00020493,2]
[380176591,1755593451460,-153.0,0.00020493,2]
[380176592,1755593451468,-201.57941792,0.00020499,2]
[380176593,1755593451477,-151.0,0.000205,2]
[380176594,1755593451487,-151.0,0.000205,2]
[380176595,1755593451496,-151.0,0.000205,2]
[380176596,1755593451505,-151.0,0.000205,4]
[380176597,1755593451514,-1525.0,0.00020506,2]
[380176598,1755593451523,-329.35962668,0.00020521,2]
[380176599,1755593451533,-1000.0,0.00020521,2]
[380176600,1755593451547,-500.86406171,0.00020521,2]
[380176601,1755593451563,-501.7804722,0.00020521,2]
[380176602,1755593451574,-1000.0,0.00020521,2]
[380176603,1755593451584,-501.0378727,0.00020521,2]
[380176604,1755593451593,-500.0,0.00020521,2]
[380176605,1755593451602,-1001.35380193,0.00020521,2]
[380176606,1755593451610,-1000.0,0.00020521,2]
[380176607,1755593451619,-1000.0,0.00020521,2]
[380176608,1755593451628,-504.20153633,0.00020521,2]
[380176609,1755593451637,-1003.33142599,0.00020521,2]
[380176610,1755593451646,-1000.0,0.00020521,2]
[380176611,1755593451655,-1000.0,0.00020521,2]
[380176612,1755593451664,-151.0,0.00020535,2]
[380176613,1755593451673,-6422.52646231,0.00020535,2]
[380176614,1755593451684,-406.74263871,0.00020535,2]
[380176615,1755593451696,-11673.42667756,0.00020535,2]
[380176616,1755593451705,-179.733719,0.00020536,2]
[380176617,1755593451714,-151.0,0.00020536,2]
[380176618,1755593451723,-241.562406,0.00020536,2]
[380176619,1755593451732,-240.479781,0.00020536,2]
[380176620,1755593451740,-618.388685,0.00020536,2]
[380176621,1755593451749,-241.562406,0.00020536,2]
[380176622,1755593451759,-618.388685,0.00020536,2]
[380176623,1755593451767,-238.741404,0.00020536,2]
[380176624,1755593451776,-238.741404,0.00020536,2]
[380176625,1755593451785,-200.0,0.00020546,2]
[380176626,1755593451794,-151.0,0.00020547,2]
[380176627,1755593451802,-200.0,0.00020547,3]
[380176628,1755593451811,-200.0,0.00020547,3]
[380176629,1755593451821,-200.0,0.00020547,3]
[380176630,1755593451830,-200.0,0.00020547,3]
[380176631,1755593451839,-200.0,0.00020547,3]
[380176632,1755593451848,-151.0,0.00020547,2]
[380176633,1755593451856,-480.0,0.00020547,2]
[380176634,1755593451866,-501.81438593,0.00020547,2]
[380176635,1755593451875,-500.0,0.00020547,2]
[380176636,1755593451884,-151.0,0.00020547,2]
[380176637,1755593451893,-151.0,0.00020547,2]
[380176638,1755593451902,-480.0,0.00020547,2]
[380176639,1755593451911,-708.1,0.00020547,2]
[380176640,1755593451921,-151.0,0.00020547,2]
[380176641,1755593451930,-480.0,0.00020547,2]
[380176642,1755593451938,-151.0,0.00020547,2]
[380176643,1755593451948,-361.06206161,0.00020547,2]
[380176644,1755593451957,-480.0,0.00020547,2]
[380176645,1755593451966,-747.5,0.00020547,2]
[380176646,1755593451975,-480.0,0.00020547,2]
[380176647,1755593451986,-1342.37,0.00020547,2]
[380176648,1755593451995,-331.820489,0.00020547,2]
[380176649,1755593452005,-695.03,0.00020547,2]
[380176650,1755593452014,-331.820489,0.00020547,2]
[380176651,1755593452023,-151.0,0.00020547,2]
[380176652,1755593452032,-480.0,0.00020547,2]
[380176653,1755593452042,-480.0,0.00020547,2]
[380176654,1755593452051,-510.91,0.00020547,2]
[380176655,1755593452061,-480.0,0.00020547,2]
[380176656,1755593452071,-480.0,0.00020547,2]
[380176657,1755593452081,-480.0,0.00020547,2]
[380176658,1755593452090,-480.0,0.00020547,2]
[380176659,1755593452099,-480.0,0.00020547,2]
[380176660,1755593452109,-1004.1,0.00020547,2]
[380176661,1755593452118,-480.0,0.00020547,2]
[380176662,1755593452127,-480.0,0.00020547,2]
[380176663,1755593452136,-514.28,0.00020547,2]
[380176664,1755593452146,-480.0,0.00020547,2]
[380176665,1755593452155,-849.3,0.00020547,2]
[380176666,1755593452164,-543.12,0.00020547,2]
[380176667,1755593452173,-480.0,0.00020547,2]
[380176668,1755593452183,-480.0,0.00020547,2]
[380176669,1755593452192,-480.0,0.00020547,2]
[380176670,1755593452202,-535.647314,0.00020547,2]
[380176671,1755593452211,-535.647314,0.00020547,2]
[380176672,1755593452220,-151.0,0.00020547,2]
[380176673,1755593452229,-151.0,0.00020547,2]
[380176674,1755593452239,-151.0,0.00020547,2]
[380176675,1755593452248,-557.31,0.00020547,2]
[380176676,1755593452258,-696.53,0.00020547,2]
[380176677,1755593452267,-2007.54,0.00020547,2]
[380176678,1755593452277,-3410.87,0.00020547,2]
[380176679,1755593452286,-151.0,0.00020547,2]
[380176680,1755593452295,-151.0,0.00020547,2]
[380176681,1755593452305,-480.0,0.00020547,2]
[380176682,1755593452314,-194.443207,0.00020547,2]
[380176683,1755593452324,-200.356239,0.00020547,2]
[380176684,1755593452334,-151.0,0.00020547,2]
[380176685,1755593452343,-194.443207,0.00020547,2]
[380176686,1755593452352,-480.0,0.00020547,2]
[380176687,1755593452362,-480.0,0.00020547,2]
[380176688,1755593452372,-1270.09,0.00020547,2]
[380176689,1755593452381,-822.37,0.00020547,2]
[380176690,1755593452390,-151.0,0.00020547,2]
[380176691,1755593452400,-1629.67,0.00020547,2]
[380176692,1755593452409,-1246.1,0.00020547,2]
[380176693,1755593452418,-813.04,0.00020547,2]
[380176694,1755593452427,-480.0,0.00020547,2]
[380176695,1755593452437,-647.44,0.00020547,2]
[380176696,1755593452446,-480.0,0.00020547,2]
[380176697,1755593452456,-576.17,0.00020547,2]
[380176698,1755593452465,-1057.36,0.00020547,2]
[380176699,1755593452475,-400.0,0.00020547,2]
[380176700,1755593452484,-526.96,0.00020547,2]
[380176701,1755593452494,-480.0,0.00020547,2]
[380176702,1755593452504,-786.22,0.00020547,2]
[380176703,1755593452513,-511.37,0.00020547,2]
[380176704,1755593452522,-480.0,0.00020547,2]
[380176705,1755593452531,-786.05,0.00020547,2]
[380176706,1755593452543,-480.0,0.00020547,2]
[380176707,1755593452553,-2051.21,0.00020547,2]
[380176708,1755593452562,-6924.41,0.00020547,2]
[380176709,1755593452575,-6698.69,0.00020547,2]
[380176710,1755593452584,-2277.25,0.00020547,2]
[380176711,1755593452594,-480.0,0.00020547,2]
[380176712,1755593452605,-2311.94,0.00020547,2]
[380176713,1755593452615,-482.71,0.00020547,2]
[380176714,1755593452625,-480.0,0.00020547,2]
[380176715,1755593452635,-480.0,0.00020547,2]
[380176716,1755593452644,-938.96,0.00020547,2]
[380176717,1755593452653,-480.0,0.00020547,2]
[380176718,1755593452663,-1621.4,0.00020547,2]
[380176719,1755593452672,-480.0,0.00020547,2]
[380176720,1755593452682,-241.562406,0.00020547,2]
[380176721,1755593452692,-618.388685,0.00020547,2]
[380176722,1755593452701,-241.562406,0.00020547,2]
[380176723,1755593452711,-618.388685,0.00020547,2]
[380176724,1755593452720,-1334.4,0.00020547,2]
[380176725,1755593452729,-3242.66,0.00020547,2]
[380176726,1755593452739,-1509.07,0.00020547,2]
[380176727,1755593452748,-674.88,0.00020547,2]
[380176728,1755593452757,-480.0,0.00020547,2]
[380176729,1755593452767,-480.0,0.00020547,2]
[380176730,1755593452776,-769.92,0.00020547,2]
[380176731,1755593452786,-980.92,0.00020547,2]
[380176732,1755593452795,-1174.48,0.00020547,2]
[380176733,1755593452805,-832.49,0.00020547,2]
[380176734,1755593452814,-496.50340355,0.00020547,2]
[380176735,1755593452824,-1416.01,0.00020547,2]
[380176736,1755593452833,-480.0,0.00020547,2]
[380176737,1755593452843,-480.0,0.00020547,2]
[380176738,1755593452853,-480.0,0.00020547,2]
[380176739,1755593452862,-480.0,0.00020547,2]
[380176740,1755593452872,-874.65,0.00020547,2]
[380176741,1755593452881,-480.0,0.00020547,2]
[380176742,1755593452890,-702.48,0.00020547,2]
[380176743,1755593452900,-525.67414511,0.00020547,2]
[380176744,1755593452909,-343.35009675,0.00020547,2]
[380176745,1755593452919,-480.0,0.00020547,2]
[380176746,1755593452928,-2990.97,0.00020547,2]
[380176747,1755593452938,-731.14,0.00020547,2]
[380176748,1755593452947,-485.93804082,0.00020547,2]
[380176749,1755593452957,-480.0,0.00020547,2]
[380176750,1755593452967,-1492.79,0.00020547,2]
[380176751,1755593452976,-480.0,0.00020547,2]
[380176752,1755593452985,-881.07,0.00020547,2]
[380176753,1755593452994,-480.0,0.00020547,2]
[380176754,1755593453004,-480.0,0.00020547,2]
[380176755,1755593453015,-238.741404,0.00020547,2]
[380176756,1755593453024,-480.0,0.00020547,2]
[380176757,1755593453033,-710.19,0.00020547,2]
[380176758,1755593453042,-764.07,0.00020547,2]
[380176759,1755593453052,-480.0,0.00020547,2]
[380176760,1755593453061,-238.741404,0.00020547,2]
[380176761,1755593453072,-198.0,0.00020548,2]
[380176762,1755593453082,-505.0,0.00020548,2]
[380176763,1755593453091,-1500.0,0.00020568,2]
[380176764,1755593453100,-322.989028,0.00020573,2]
[380176765,1755593453110,-322.989028,0.00020573,2]
[380176766,1755593453119,-204.015073,0.00020573,2]
[380176767,1755593453127,-204.015073,0.00020573,2]
[380176768,1755593453137,-223.65181965,0.00020575,2]
[380176769,1755593453146,-1562.575258,0.0002058,5]
[380176770,1755593453155,-1000.0,0.000206,5]
[380176771,1755593453164,-168.0,0.00020601,2]
[380176772,1755593453173,-168.0,0.00020601,2]
[380176773,1755593453182,-294.0,0.00020605,2]
[380176774,1755593453192,-1000.0,0.0002062,5]
[380176775,1755593453201,-208.73556,0.0002064,2]
[380176776,1755593453209,-1000.0,0.0002064,5]
[380176777,1755593453219,-1000.0,0.0002066,5]
[380176778,1755593453228,-544.65,0.00020677,2]
[380176779,1755593453237,-1000.0,0.0002068,5]
[380176780,1755593453246,-223.65181965,0.00020685,2]
[380176781,1755593453255,-1000.0,0.000207,5]
[380176782,1755593453265,-501.39022557,0.0002071,2]
[380176783,1755593453274,-185.50628992,0.0002071,2]
[380176784,1755593453283,-500.0,0.0002071,2]
[380176785,1755593453292,-1000.0,0.0002072,5]
[380176786,1755593453301,-151.0,0.00020725,2]
[380176787,1755593453310,-5056.91133619,0.00020725,2]
[380176788,1755593453319,-1000.0,0.0002074,5]
[380176789,1755593453331,-1000.0,0.0002076,5]
[380176790,1755593453340,-151.0,0.0002076,2]
[380176791,1755593453350,-600.0,0.00020778,2]
[380176792,1755593453360,-1000.0,0.0002078,5]
[380176793,1755593453370,-260.0,0.00020781,2]
[380176794,1755593453380,-420.0,0.00020792,2]
[380176795,1755593453389,-26230.9325509,0.000208,5]
[380176796,1755593453398,-151.0,0.000208,2]
[380176797,1755593453407,-151.0,0.000208,2]
[380176798,1755593453416,-151.0,0.000208,2]
[380176799,1755593453425,-1000.0,0.000208,5]
[380176800,1755593453434,-535.647314,0.000208,2]
[380176801,1755593453443,-535.647314,0.000208,2]
[380176802,1755593453453,-395.0,0.00020805,2]
[380176803,1755593453462,-2000.0,0.00020816,2]
[380176804,1755593453472,-272.3,0.0002082,3]
[380176805,1755593453483,-151.0,0.00020821,2]
[380176806,1755593453493,-223.477753,0.00020821,2]
[380176807,1755593453503,-480.0,0.00020821,2]
[380176808,1755593453513,-708.1,0.00020821,2]
[380176809,1755593453522,-480.0,0.00020821,2]
[380176810,1755593453532,-151.0,0.00020821,2]
[380176811,1755593453546,-480.0,0.00020821,2]
[380176812,1755593453555,-747.5,0.00020821,2]
[380176813,1755593453565,-480.0,0.00020821,2]
[380176814,1755593453575,-1342.37,0.00020821,2]
[380176815,1755593453586,-331.820489,0.00020821,2]
[380176816,1755593453595,-695.03,0.00020821,2]
[380176817,1755593453605,-331.820489,0.00020821,2]
[380176818,1755593453615,-151.0,0.00020821,2]
[380176819,1755593453625,-463.13351496,0.00020821,2]
[380176820,1755593453634,-480.0,0.00020821,2]
[380176821,1755593453643,-510.91,0.00020821,2]
[380176822,1755593453653,-480.0,0.00020821,2]
[380176823,1755593453662,-322.989028,0.00020821,2]
[380176824,1755593453672,-322.989028,0.00020821,2]
[380176825,1755593453681,-480.0,0.00020821,2]
[380176826,1755593453691,-480.0,0.00020821,2]
[380176827,1755593453702,-204.015073,0.00020821,2]
[380176828,1755593453711,-480.0,0.00020821,2]
[380176829,1755593453721,-204.015073,0.00020821,2]
[380176830,1755593453730,-480.0,0.00020821,2]
[380176831,1755593453740,-1004.1,0.00020821,2]
[380176832,1755593453750,-202.48618182,0.00020821,2]
[380176833,1755593454526,-340.78583715,0.00019178,2]
[380176834,1755593456329,-139.21416285,0.00019178,2]
[380176835,1755593456340,-582.03,0.00019178,2]
[380176836,1755593456349,-480.0,0.00019178,2]
[380176837,1755593456359,-480.0,0.00019178,2]
[380176838,1755593456368,-480.0,0.00019178,2]
[380176839,1755593456377,-480.0,0.00019178,2]
[380176840,1755593456387,-480.0,0.00019178,2]
[380176841,1755593456396,-480.0,0.00019178,2]
[380176842,1755593456405,-480.0,0.00019178,2]
[380176843,1755593456414,-480.0,0.00019178,2]
[380176844,1755593456423,-500.0,0.00019178,2]
[380176845,1755593456432,-500.0,0.00019178,2]
[380176846,1755593456441,-480.0,0.00019178,2]
[380176847,1755593456450,-311.64900757,0.00019452,2]
[380176848,1755593456461,-168.35099243,0.00019452,2]
[380176849,1755593456474,-480.0,0.00019452,2]
[380176850,1755593456483,-480.0,0.00019452,2]
[380176851,1755593456493,-480.0,0.00019452,2]
[380176852,1755593456502,-480.0,0.00019452,2]
[380176853,1755593456511,-526.18022926,0.00019484,2]
[380176854,1755593456521,-526.18022926,0.00019686,2]
[380176855,1755593456531,-480.0,0.00019726,2]
[380176856,1755593456552,-212.17,0.00019726,2]
[380176857,1755593456566,-526.18022926,0.00019889,2]
[380176858,1755593456578,-151.0,0.0001999,2]
[380176859,1755593456588,-151.0,0.0002,2]
[380176860,1755593456597,-503.56,0.0002,2]
[380176861,1755593456607,-150.108,0.00020189,2]
[380176862,1755593456616,-151.0,0.00020273,2]
[380176863,1755593456625,-480.0,0.00020547,2]
[380176864,1755593456634,-277.51381818,0.00020821,2]
[380176865,1755593456644,-362.44443999,0.00020821,2]
[380176866,1755593456653,-514.28,0.00020821,2]
[380176867,1755593456663,-480.0,0.00020821,2]
[380176868,1755593456673,-849.3,0.00020821,2]
[380176869,1755593456682,-543.12,0.00020821,2]
[380176870,1755593456691,-480.0,0.00020821,2]
[380176871,1755593456700,-480.0,0.00020821,2]
[380176872,1755593456710,-480.0,0.00020821,2]
[380176873,1755593456720,-151.0,0.00020821,2]
[380176874,1755593456729,-151.0,0.00020821,2]
[380176875,1755593456738,-151.0,0.00020821,2]
[380176876,1755593456747,-151.0,0.00020821,2]
[380176877,1755593456757,-151.0,0.00020821,2]
[380176878,1755593456766,-557.31,0.00020821,2]
[380176879,1755593456775,-696.53,0.00020821,2]
[380176880,1755593456878,-2007.54,0.00020821,2]
[380176881,1755593456892,-550.61205699,0.00020821,2]
[380176882,1755593456904,-2860.25794301,0.00020821,2]
[380176883,1755593456913,-151.0,0.00020821,2]
[380176884,1755593456922,-151.0,0.00020821,2]
[380176885,1755593456932,-291.12077773,0.00020821,2]
[380176886,1755593456941,-194.443207,0.00020821,2]
[380176887,1755593456950,-194.443207,0.00020821,2]
[380176888,1755593456960,-151.0,0.00020821,2]
[380176889,1755593456970,-151.0,0.00020821,2]
[380176890,1755593456980,-194.443207,0.00020821,2]
[380176891,1755593456990,-194.443207,0.00020821,2]
[380176892,1755593457000,-480.0,0.00020821,2]
[380176893,1755593457009,-480.0,0.00020821,2]
[380176894,1755593457018,-822.37,0.00020821,2]
[380176895,1755593457028,-151.0,0.00020821,2]
[380176896,1755593457037,-936.61830668,0.00020821,2]
[380176897,1755593457052,-693.05169332,0.00020821,2]
[380176898,1755593457062,-157.907713,0.00020821,14]
[380176899,1755593457071,-494.28310746,0.00020821,2]
[380176900,1755593473990,287.61445387,0.000189,2]
[380177482,1755593719216,150.0,0.00028,120]
[380177483,1755593775379,191.74296924,0.000189,2]
[380177484,1755593829204,231.58537948,0.00019044,2]
[380177485,1755594009567,-4768.41462052,0.00019044,2]
[380177486,1755594009596,151.15445482,0.00018978,2]
[380177487,1755594054543,-1200.0,0.00019077,2]
[380177488,1755594054571,-257.42520314,0.00019078,2]
[380177489,1755594076569,150.0,0.000189,2]
[380177490,1755594107026,-300.0,0.00019098,2]
[380177491,1755594107055,-300.0,0.00019098,2]
[380177492,1755594107084,-300.0,0.00019098,2]
[380177493,1755594107113,-502.79175507,0.000191,2]
[380177494,1755594107143,-994.41648986,0.00019165,2]
[380177495,1755594107315,-205.58351014,0.00019165,2]
[380177496,1755594111734,205.94016252,0.00019078,2]
[380177497,1755594122687,300.0,0.00019165,2]
[380177498,1755594138189,2019.33792326,0.00019078,2]
[380177499,1755594182443,300.0,0.00019165,2]
[380177500,1755594240036,1763.55489394,0.00019067,2]
[380177501,1755594240058,3277.73600753,0.00019067,2]
[380177502,1755594248364,300.0,0.00019165,2]
[380177504,1755594303421,300.0,0.00019165,2]
[380177505,1755594303751,1122.26399247,0.00019165,2]
[380177506,1755594303774,77.73600753,0.00019165,2]
[380177507,1755594312473,-480.0,0.00019178,2]
[380177508,1755594312501,-408.87812576,0.00019178,2]
[380177509,1755594312529,-481.19425658,0.00019178,2]
[380177510,1755594312557,-480.0,0.00019178,2]
[380177511,1755594312585,-480.0,0.00019178,2]
[380177512,1755594312754,-480.0,0.00019178,2]
[380177513,1755594312782,-480.0,0.00019178,2]
[380177514,1755594312810,-480.0,0.00019178,2]
[380177515,1755594312840,-480.08057849,0.00019178,2]
[380177516,1755594312871,-480.0,0.00019178,2]
[380177517,1755594313004,-480.0,0.00019178,2]
[380177518,1755594313033,-527.9537116,0.00019178,2]
[380177519,1755594313060,-460.0,0.00019178,2]